bitfinex/quotes_ETHUSD_20251006
["timestamp","ask_amount","ask_price","bid_price","bid_amount"]
[1759713170727,2.524,4507.8,4506.6,2.21894655]
[1759713170728,0.4351,4507.7,4506.8,2.84378114]
[1759713170920,0.4351,4507.7,4507.4,2.21855183]
[1759713171121,0.4351,4507.6,4506.8,2.8445]
[1759713171326,0.4351,4507.6,4507.5,2.21852468]
[1759713173021,0.5463,4507.6,4507.5,2.21852468]
[1759713174258,0.002,4507.8,4507.7,2.21842624]
[1759713174419,0.4371,4508.3,4508.0,2.21827861]
[1759713174420,1e-08,4508.3,4508.0,2.21827861]
[1759713174624,1.941,4508.2,4508.1,2.2182294]
[1759713178643,1e-08,4508.3,4508.2,2.2181802]
[1759713178840,2.52200001,4508.3,4508.2,2.2181802]
[1759713180769,1e-08,4508.3,4508.2,2.2181802]
[1759713181065,2.52200001,4508.3,4508.2,2.6626802]
[1759713181774,2.52200001,4508.3,4508.2,2.2181802]
[1759713182767,2.52200001,4508.3,4508.2,3.7107367]
[1759713182931,2.52200001,4508.3,4508.2,6.9320871]
[1759713183768,1e-08,4508.3,4508.2,6.9320871]
[1759713183968,2.52200001,4508.3,4508.2,6.9320871]
[1759713185372,1e-08,4508.3,4508.2,6.9320871]
[1759713188439,1e-08,4508.3,4508.1,0.1112]
[1759713188644,1e-08,4508.3,4507.3,0.001]
[1759713188645,0.4327,4508.2,4507.4,2.2185739]
[1759713188846,0.4327,4508.2,4508.1,2.2182294]
[1759713189041,0.4327,4508.2,4507.8,0.1112]
[1759713189348,1e-08,4508.3,4507.4,0.1112]
[1759713189349,0.1112,4508.0,4507.4,0.1112]
[1759713189554,0.1112,4508.0,4507.9,2.21832782]
[1759713190581,0.5439,4508.0,4507.9,2.21832782]
[1759713191677,0.1112,4508.0,4507.9,2.21832782]
[1759713193875,0.5439,4508.0,4507.9,2.21832782]
[1759713195680,0.1112,4508.0,4507.9,2.21832782]
[1759713196084,0.31772237,4508.0,4507.9,2.21832782]
[1759713198280,0.75042237,4508.0,4507.9,2.21832782]
[1759713199066,0.31772237,4508.0,4507.9,2.21832782]
[1759713199902,2.83872237,4508.0,4507.9,2.21832782]
[1759713207802,0.20652237,4508.0,4507.9,2.67882782]
[1759713208032,2.72752237,4508.0,4507.9,3.50412413]
[1759713208735,1e-08,4508.3,4508.2,2.2181802]
[1759713209015,1e-08,4508.3,4508.2,5.4395306]
[1759713209016,2.52100001,4508.3,4508.2,5.4395306]
[1759713209220,2.52100001,4508.3,4508.2,6.7047701]
[1759713213221,2.96200001,4508.3,4508.2,2.2181802]
[1759713213589,2.52100001,4508.3,4508.2,2.2181802]
[1759713218417,2.52100001,4508.3,4507.8,0.001]
[1759713218591,0.441,4508.2,4507.8,0.001]
[1759713218924,0.1112,4508.1,4508.0,2.21827861]
[1759713219333,0.5522,4508.1,4508.0,2.21827861]
[1759713221699,0.75928044,4508.1,4508.0,2.21827861]
[1759713222936,0.75928044,4508.1,4507.8,2.21937557]
[1759713222937,0.75928044,4508.1,4507.8,0.001]
[1759713223139,0.64808044,4508.0,4507.8,0.001]
[1759713223440,2.72708044,4507.9,4507.8,0.001]
[1759713223940,3.16808044,4507.9,4507.8,0.001]
[1759713227742,5.8633701,4507.9,4507.8,0.001]
[1759713227956,9.74905304,4507.9,4507.8,0.001]
[1759713231449,2.85212468,4507.5,4507.4,0.001]
[1759713231634,12.75198901,4507.5,4507.4,0.001]
[1759713231842,13.66995085,4507.5,4507.4,0.001]
[1759713232035,15.37720977,4507.5,4507.4,0.001]
[1759713232271,14.583398,4507.5,4507.4,0.001]
[1759713233437,4.7913012,4507.5,4507.4,0.001]
[1759713233641,8.37576696,4507.5,4507.4,0.001]
[1759713233841,6.15724228,4507.5,4507.4,0.001]
[1759713234074,8.37576696,4507.5,4507.4,0.001]
[1759713235252,9.00936696,4507.5,4507.4,0.001]
[1759713235456,9.49283285,4507.5,4507.4,0.001]
[1759713235787,11.13001863,4507.5,4507.4,0.001]
[1759713235985,23.71374963,4507.5,4507.4,0.001]
[1759713236145,38.78124794,4507.5,4507.4,0.001]
[1759713236341,26.99592394,4507.5,4507.4,0.001]
[1759713236581,28.58847806,4507.5,4507.4,0.001]
[1759713237093,29.22073306,4507.5,4507.4,0.001]
[1759713237391,28.42669921,4507.5,4507.4,0.001]
[1759713237570,23.59869921,4507.5,4507.4,0.001]
[1759713237739,26.11969921,4507.5,4507.4,0.001]
[1759713238146,26.76569921,4507.5,4507.4,0.001]
[1759713239284,27.76568221,4507.5,4507.4,0.001]
[1759713239446,28.93556721,4507.5,4507.4,0.001]
[1759713239648,27.93556721,4507.5,4507.4,0.001]
[1759713240371,27.94006721,4507.5,4507.4,0.001]
[1759713240573,15.09198009,4507.5,4507.4,0.001]
[1759713240777,17.61298009,4507.5,4507.4,0.001]
[1759713242181,36.89236509,4507.5,4507.4,0.001]
[1759713242367,36.89236509,4507.5,4507.3,0.001]
[1759713242368,6.5851739,4507.4,4507.3,0.001]
[1759713242565,40.62057963,4507.4,4507.3,0.001]
[1759713242745,11.07477963,4507.4,4507.3,0.001]
[1759713242946,41.07477963,4507.4,4507.3,0.001]
[1759713245355,41.18597963,4507.4,4507.3,0.001]
[1759713246193,40.00073534,4507.4,4507.3,0.001]
[1759713246493,4.1853708,4507.0,4506.4,0.001]
[1759713246698,19.13067855,4507.0,4506.4,0.001]
[1759713246911,26.86517655,4507.0,4506.4,0.001]
[1759713247409,29.96377648,4507.0,4506.4,0.001]
[1759713248015,29.96352748,4507.0,4506.4,0.001]
[1759713248195,30.67919824,4507.0,4506.4,0.001]
[1759713248396,29.70819824,4507.0,4506.4,0.001]
[1759713249011,30.08833724,4507.0,4506.4,0.001]
[1759713250123,31.04407655,4507.0,4506.4,0.001]
[1759713250716,26.32950355,4507.0,4506.4,0.001]
[1759713251116,31.97617455,4507.0,4506.4,0.001]
[1759713251617,28.54121855,4507.0,4506.4,0.001]
[1759713251785,28.72721855,4507.0,4506.4,0.001]
[1759713251975,30.13549898,4507.0,4506.4,0.001]
[1759713252175,31.73839888,4507.0,4506.4,0.001]
[1759713252376,31.69770188,4507.0,4506.4,0.001]
[1759713252610,33.46419031,4507.0,4506.4,0.001]
[1759713252911,28.77047633,4507.0,4506.4,0.001]
[1759713253086,30.18220433,4507.0,4506.4,0.001]
[1759713253282,2.85261697,4506.5,4506.4,0.001]
[1759713253489,15.33744721,4506.5,4506.4,0.001]
[1759713253805,12.93939921,4506.5,4506.4,0.001]
[1759713254206,12.93939921,4506.5,4506.4,0.4583]
[1759713254509,3.19185394,4506.5,4506.4,0.4583]
[1759713254709,6.30727489,4506.5,4506.4,0.4583]
[1759713254888,5.71285394,4506.5,4506.4,0.4583]
[1759713256192,3.19185394,4506.5,4506.4,0.4583]
[1759713256389,3.31285394,4506.5,4506.4,0.4583]
[1759713256589,3.31285394,4506.5,4506.4,2.67736621]
[1759713258374,3.31285394,4506.5,4506.4,0.4583]
[1759713260091,3.31285394,4506.5,4506.4,0.001]
[1759713260487,3.31285394,4506.5,4506.4,0.4583]
[1759713260689,3.72298718,4506.5,4506.4,0.001]
[1759713261323,4.31740813,4506.5,4506.4,0.4583]
[1759713261502,3.90727489,4506.5,4506.4,0.4583]
[1759713263519,3.90727489,4506.5,4506.4,0.001]
[1759713263722,9.15989186,4506.5,4506.4,0.001]
[1759713263937,9.8119988,4506.5,4506.4,0.001]
[1759713264135,9.01967091,4506.5,4506.4,0.001]
[1759713264424,5.2527647,4506.2,4506.1,0.011]
[1759713264608,9.24872684,4506.2,4506.1,0.011]
[1759713264808,9.35992684,4506.2,4506.1,0.011]
[1759713270101,7.14076214,4506.2,4506.1,0.011]
[1759713270324,8.56561864,4506.2,4506.1,0.011]
[1759713270629,7.66728815,4506.2,4506.1,0.011]
[1759713270828,3.19185394,4506.2,4506.1,0.011]
[1759713271026,5.71285394,4506.2,4506.1,0.4683]
[1759713271927,5.71285394,4506.2,4506.1,2.68751395]
[1759713272298,6.30853777,4506.2,4506.1,2.68751395]
[1759713272695,6.30853777,4506.2,4506.1,0.4683]
[1759713272900,5.71285394,4506.2,4506.1,0.4683]
[1759713274533,7.18108675,4506.2,4506.1,0.011]
[1759713274726,6.58547261,4506.2,4506.1,0.011]
[1759713274934,13.66547261,4506.2,4506.1,0.011]
[1759713275130,14.26108884,4506.2,4506.1,0.011]
[1759713275317,14.26108884,4506.2,4506.1,0.113169]
[1759713275936,14.26108884,4506.2,4506.1,0.554069]
[1759713276142,13.38847017,4506.2,4506.1,0.554069]
[1759713277144,5.71285394,4506.2,4506.1,0.554069]
[1759713277500,5.71285394,4506.2,4506.1,2.77328295]
[1759713277706,5.71285394,4506.2,4506.1,0.554069]
[1759713279307,5.71285394,4506.2,4506.1,0.113169]
[1759713279548,6.01122793,4506.2,4506.1,0.113169]
[1759713280746,5.71285394,4506.2,4506.1,0.113169]
[1759713280955,5.71285394,4506.2,4506.1,0.554069]
[1759713284058,0.79185394,4506.2,4506.1,2.77328295]
[1759713284237,2.83726475,4506.2,4506.1,2.77328295]
[1759713284752,0.31726475,4506.2,4506.1,2.77328295]
[1759713284917,2.72606475,4506.2,4506.1,3.66153671]
[1759713285250,2.72606475,4506.2,4506.1,6.88459272]
[1759713285753,0.20606475,4506.2,4506.1,6.88459272]
[1759713285909,2.52,4506.2,4506.1,6.99579272]
[1759713292293,2.52,4506.2,4506.1,6.88459272]
[1759713293478,0.002,4506.4,4506.3,2.21911546]
[1759713293678,2.522,4506.4,4506.3,2.98308866]
[1759713293977,2.522,4506.4,4506.3,3.40179751]
[1759713294591,2.522,4506.4,4506.1,0.113169]
[1759713294592,2.9754,4506.4,4506.1,0.113169]
[1759713294752,2.2191647,4506.2,4506.1,0.113169]
[1759713294953,3.08270645,4506.2,4506.1,0.113169]
[1759713295185,6.38887115,4506.2,4506.1,0.113169]
[1759713295391,7.56142759,4506.2,4506.1,0.113169]
[1759713296269,7.56136064,4506.2,4506.1,0.113169]
[1759713297757,29.20325653,4506.2,4506.1,0.113169]
[1759713297957,2.8528632,4506.0,4505.9,0.001]
[1759713298187,11.67855871,4506.0,4505.9,0.001]
[1759713298351,13.40532607,4506.0,4505.9,0.001]
[1759713298556,13.85872607,4506.0,4505.9,0.001]
[1759713299298,14.65086626,4506.0,4505.9,0.001]
[1759713300386,14.65062444,4506.0,4505.9,0.001]
[1759713301260,11.42756843,4506.0,4505.9,0.001]
[1759713301485,30.92493425,4506.0,4505.9,0.001]
[1759713301763,30.92493425,4506.0,4505.3,0.001]
[1759713301764,3.0336,4505.5,4505.3,0.001]
[1759713302017,8.98293394,4505.4,4505.3,0.001]
[1759713302257,12.24321244,4505.4,4505.3,0.001]
[1759713302855,6.94107599,4505.4,4505.3,0.001]
[1759713303156,9.16063474,4505.4,4505.3,0.001]
[1759713303325,11.13206542,4505.4,4505.3,0.001]
[1759713303656,8.61206542,4505.4,4505.3,0.001]
[1759713303841,11.13206542,4505.4,4505.3,0.001]
[1759713304037,11.13194658,4505.4,4505.3,0.001]
[1759713304229,10.53806827,4505.4,4505.3,0.001]
[1759713308760,8.01806827,4505.4,4505.3,0.001]
[1759713309066,10.53806827,4505.4,4505.3,0.001]
[1759713309265,34.10426727,4505.4,4505.3,0.001]
[1759713309565,38.27507727,4505.4,4505.3,0.001]
[1759713309740,5.25320801,4505.3,4505.2,0.001]
[1759713309938,42.5155265,4505.3,4505.2,0.001]
[1759713310262,43.09193467,4505.3,4505.2,0.001]
[1759713310440,42.52692067,4505.3,4505.2,0.001]
[1759713311323,35.52679728,4505.2,4505.1,1e-08]
[1759713311669,39.78853612,4505.2,4505.1,1e-08]
[1759713311833,42.38892793,4505.2,4505.1,1e-08]
[1759713312463,43.92891108,4505.2,4505.1,1e-08]
[1759713312967,4.18635582,4505.0,4504.8,0.001]
[1759713313263,43.91198415,4505.0,4504.8,0.001]
[1759713313561,45.94780994,4505.0,4504.8,0.001]
[1759713313768,46.03672303,4505.0,4504.8,0.001]
[1759713315556,49.25977904,4505.0,4504.8,0.001]
[1759713315760,46.73801958,4505.0,4504.8,0.001]
[1759713316069,46.38821435,4505.0,4504.8,0.001]
[1759713316269,43.86821435,4505.0,4504.8,0.001]
[1759713316455,48.34572303,4505.0,4504.8,0.001]
[1759713317333,9.80955966,4504.7,4504.6,1e-08]
[1759713317532,44.9028605,4504.7,4504.6,1e-08]
[1759713317731,45.4459605,4504.7,4504.6,1e-08]
[1759713318969,48.66901651,4504.7,4504.6,1e-08]
[1759713319328,51.00501651,4504.7,4504.6,1e-08]
[1759713319969,51.09394185,4504.7,4504.6,1e-08]
[1759713320684,45.35088584,4504.7,4504.6,1e-08]
[1759713320887,20.51467884,4504.7,4504.6,1e-08]
[1759713321192,20.06743152,4504.7,4504.6,1e-08]
[1759713321657,29.78972052,4504.7,4504.6,1e-08]
[1759713322272,2.85360222,4504.5,4504.4,0.001]
[1759713322487,29.72858687,4504.5,4504.4,0.001]
[1759713322655,31.4903783,4504.5,4504.4,0.001]
[1759713322855,30.6645183,4504.5,4504.4,0.001]
[1759713323059,29.87546987,4504.5,4504.4,0.001]
[1759713323795,20.14280987,4504.5,4504.4,0.001]
[1759713324460,20.14380987,4504.5,4504.4,0.001]
[1759713324679,31.10828487,4504.5,4504.4,0.001]
[1759713324870,28.06902087,4504.5,4504.4,0.001]
[1759713325792,29.25727187,4504.5,4504.4,0.001]
[1759713326091,34.59503311,4504.5,4504.4,0.001]
[1759713326298,34.59503311,4504.5,4504.1,0.011]
[1759713326299,6.5866515,4504.4,4504.1,0.011]
[1759713326467,39.54862215,4504.4,4504.1,0.011]
[1759713326667,39.98052215,4504.4,4504.1,0.011]
[1759713326873,39.98029618,4504.4,4504.1,0.011]
[1759713327076,47.06029618,4504.4,4504.1,0.011]
[1759713328006,47.06029618,4504.4,4503.3,0.001]
[1759713328007,45.19004991,4504.4,4503.3,0.001]
[1759713328190,0.6336,4503.6,4503.3,0.001]
[1759713328392,4.18724309,4503.2,4503.1,1e-08]
[1759713328578,37.56965287,4503.2,4502.3,0.4729]
[1759713328777,3.0336,4502.3,4502.1,0.01]
[1759713328977,6.0577892,4502.2,4502.1,0.01]
[1759713329182,8.56683574,4502.2,4502.1,0.01]
[1759713329786,3.71565287,4502.2,4502.1,0.01]
[1759713330108,12.62953055,4502.2,4502.1,0.01]
[1759713330308,12.31542263,4502.2,4502.1,0.01]
[1759713331169,13.2170234,4502.2,4502.1,0.01]
[1759713331581,12.87786969,4502.2,4502.1,0.01]
[1759713331782,12.76552209,4502.2,4502.1,0.01]
[1759713331987,12.76552209,4502.2,4502.1,0.4829]
[1759713332186,12.76552209,4502.2,4502.1,0.01]
[1759713332474,13.55465775,4502.2,4502.1,0.01]
[1759713333575,5.25488434,4501.9,4501.8,0.001]
[1759713333774,12.58112972,4501.9,4501.8,0.001]
[1759713334206,12.58095758,4501.9,4501.8,0.001]
[1759713334902,11.79219322,4501.9,4501.8,0.001]
[1759713335105,16.94025622,4501.9,4501.8,0.001]
[1759713335405,19.10874803,4501.9,4501.8,0.001]
[1759713336007,39.58866203,4501.9,4501.8,0.001]
[1759713336579,41.22398336,4501.9,4501.8,0.001]
[1759713336778,0.6336,4501.7,4501.1,0.01]
[1759713337084,9.37771911,4501.2,4501.1,0.01]
[1759713337280,41.53867478,4501.2,4501.1,0.01]
[1759713337584,32.06530746,4501.2,4501.1,0.01]
[1759713337782,32.53330746,4501.2,4501.1,0.01]
[1759713338292,32.79485246,4501.2,4501.1,0.01]
[1759713338884,33.24425246,4501.2,4501.1,0.01]
[1759713339507,44.31040646,4501.2,4501.1,0.01]
[1759713339689,37.23521746,4501.2,4501.1,0.01]
[1759713340301,38.56721746,4501.2,4501.1,0.01]
[1759713340500,40.70087646,4501.2,4501.1,0.01]
[1759713340709,40.69087646,4501.2,4501.1,0.01]
[1759713340909,40.64087646,4501.2,4501.1,0.01]
[1759713341096,40.19611946,4501.2,4501.1,0.01]
[1759713341299,40.16011946,4501.2,4501.1,0.01]
[1759713341506,37.74261946,4501.2,4501.1,0.01]
[1759713341701,42.61453846,4501.2,4501.1,0.01]
[1759713342017,3.0336,4500.2,4499.9,0.468]
[1759713342214,3.0336,4500.0,4499.9,0.468]
[1759713342522,3.82685287,4500.0,4499.1,0.01]
[1759713342750,0.1112,4499.2,4499.1,0.01]
[1759713342885,2.6332,4499.2,4499.1,0.01]
[1759713343318,2.6332,4499.2,4499.1,2.23266675]
[1759713343531,0.1112,4499.2,4499.1,3.14621369]
[1759713343689,2.522,4499.2,4499.1,3.14621369]
[1759713344004,2.6332,4499.2,4499.1,3.14621369]
[1759713344177,0.47194972,4500.2,4499.5,2.22245202]
[1759713344381,0.1112,4499.6,4499.5,2.66695756]
[1759713344617,2.6332,4499.6,4499.5,0.91250554]
[1759713344821,2.83802775,4499.6,4499.5,0.91250554]
[1759713344987,2.83802775,4499.6,4499.5,3.1349747]
[1759713345523,2.83802775,4499.6,4499.5,0.91250554]
[1759713345817,2.83802775,4499.6,4499.5,0.468]
[1759713346021,2.83802775,4499.6,4499.5,2.69046916]
[1759713348592,2.83802775,4499.6,4499.5,0.468]
[1759713349988,2.83802775,4499.6,4499.5,2.69046916]
[1759713350299,2.83802775,4499.6,4499.5,0.468]
[1759713350716,2.83802775,4499.6,4499.2,0.468]
[1759713350903,2.83802775,4499.6,4499.1,0.01]
[1759713350904,0.20482775,4499.5,4499.3,0.468]
[1759713351112,0.1112,4499.2,4499.1,0.01]
[1759713351303,2.6332,4499.2,4499.1,0.01]
[1759713351699,2.8382067,4499.2,4499.1,0.478]
[1759713351922,2.8382067,4499.2,4499.1,0.01]
[1759713353006,2.8382067,4499.2,4499.1,0.478]
[1759713355705,3.4718067,4499.2,4499.1,0.01]
[1759713356026,4.11731794,4499.2,4499.1,0.01]
[1759713356590,6.96671794,4499.2,4499.1,0.01]
[1759713356829,9.18933529,4499.2,4499.1,0.01]
[1759713356988,7.55703683,4499.2,4499.1,0.01]
[1759713357192,6.96671794,4499.2,4499.1,0.01]
[1759713357886,6.96671794,4499.2,4499.1,0.011]
[1759713358302,7.7538098,4499.2,4499.1,0.011]
[1759713359443,7.3044098,4499.2,4499.1,0.011]
[1759713360347,9.97642715,4499.2,4499.1,0.011]
[1759713360642,4.7824098,4499.2,4499.1,0.011]
[1759713360845,6.23449727,4499.2,4499.1,0.479]
[1759713361147,3.07789727,4499.2,4499.1,0.479]
[1759713361316,5.59989727,4499.2,4499.1,0.479]
[1759713362545,5.59989727,4499.2,4499.1,0.011]
[1759713362854,6.66859727,4499.2,4499.1,0.011]
[1759713363026,10.42387539,4499.2,4499.1,0.011]
[1759713363226,9.63678353,4499.2,4499.1,0.011]
[1759713363913,7.41416618,4499.2,4499.1,0.011]
[1759713364610,9.63678353,4499.2,4499.1,0.011]
[1759713365161,7.41416618,4499.2,4499.1,0.011]
[1759713365840,7.52536618,4499.2,4499.1,0.011]
[1759713366031,7.09026618,4499.2,4499.1,0.011]
[1759713367167,4.56826618,4499.2,4499.1,0.011]
[1759713367466,6.50286587,4499.2,4499.1,0.4826]
[1759713367640,5.71209727,4499.2,4499.1,0.4826]
[1759713368626,0.78909727,4499.2,4499.1,2.70526675]
[1759713368965,0.3162067,4499.2,4499.1,3.19806744]
[1759713369126,2.8392067,4499.2,4499.1,3.19806744]
[1759713370263,2.6342,4499.2,4499.1,3.19806744]
[1759713370863,0.59317644,4500.3,4499.1,1.08660069]
[1759713371055,2.72893241,4500.2,4500.0,2.2221813]
[1759713371256,0.6803992,4500.1,4500.0,2.22222222]
[1759713371452,2.84013241,4500.1,4500.0,2.22222222]
[1759713371834,2.84013241,4500.1,4500.0,2.69382222]
[1759713371835,3.3145992,4500.1,4500.0,2.69382222]
[1759713372057,3.2033992,4500.1,4500.0,3.18765653]
[1759713372258,2.72893241,4500.1,4500.0,3.18765653]
[1759713372646,2.523,4500.1,4500.0,3.18765653]
[1759713373034,0.1112,4500.3,4500.2,2.22212346]
[1759713373532,0.47633219,4501.1,4501.0,2.2217285]
[1759713373735,0.002,4501.1,4501.0,2.6933285]
[1759713373935,2.525,4501.1,4501.0,2.6933285]
[1759713374167,0.002,4501.1,4501.0,3.18484181]
[1759713374348,0.002,4501.1,4501.0,3.20705909]
[1759713374549,2.471,4501.1,4501.0,3.18484181]
[1759713376065,2.525,4501.1,4501.0,3.18484181]
[1759713376668,0.002,4501.1,4501.0,3.18484181]
[1759713377245,1e-08,4501.6,4501.5,2.22148172]
[1759713377429,1e-08,4501.6,4501.5,2.55482989]
[1759713377634,1e-08,4501.6,4501.5,3.02642989]
[1759713382882,1e-08,4501.6,4501.5,3.0486447]
[1759713383382,1e-08,4501.6,4501.5,3.02642989]
[1759713386890,1e-08,4501.6,4501.5,5.42642989]
[1759713387098,1e-08,4501.6,4501.5,5.94882989]
[1759713387380,0.002,4502.1,4502.0,14.11291756]
[1759713387552,0.002,4502.1,4502.0,14.53545758]
[1759713387760,0.002,4502.1,4502.0,15.00705758]
[1759713395257,0.002,4502.1,4502.0,2.64377502]
[1759713395460,0.002,4502.1,4502.0,2.221235]
[1759713395461,0.4592,4502.1,4502.0,2.221235]
[1759713395701,0.4592,4502.1,4501.5,0.002005]
[1759713396119,0.4592,4502.1,4502.0,2.221235]
[1759713396481,0.002,4502.1,4502.0,2.221235]
[1759713396923,0.4592,4502.1,4502.0,2.221235]
[1759713397079,0.5704,4502.1,4501.5,0.113205]
[1759713397279,0.5704,4502.1,4502.0,2.221235]
[1759713397807,0.5704,4502.1,4502.0,2.22224]
[1759713398722,0.5704,4502.1,4502.0,0.001005]
[1759713400288,0.77639562,4502.1,4502.0,0.001005]
[1759713402038,1.53509488,4502.1,4502.0,0.001005]
[1759713402313,2.12827132,4502.1,4502.0,0.001005]
[1759713402517,5.00286826,4502.1,4502.0,0.001005]
[1759713402820,7.52386826,4502.1,4502.0,0.001005]
[1759713403118,6.93069182,4502.1,4502.0,0.001005]
[1759713405234,11.27464608,4502.1,4502.0,0.001005]
[1759713405436,9.15187748,4502.1,4502.0,0.001005]
[1759713405636,2.85503237,4501.6,4501.5,0.001]
[1759713405848,4.15446397,4501.6,4501.5,0.001]
[1759713406141,3.18256528,4501.6,4501.5,0.001]
[1759713406652,4.9112316,4501.6,4501.5,0.001]
[1759713406810,7.27196934,4501.6,4501.5,0.001]
[1759713407006,6.16999256,4501.6,4501.5,0.001]
[1759713407212,6.17082123,4501.6,4501.5,0.001]
[1759713407812,3.64982123,4501.6,4501.5,0.001]
[1759713408014,6.17082123,4501.6,4501.5,0.001]
[1759713408538,6.80442123,4501.6,4501.5,0.001]
[1759713408757,7.54429155,4501.6,4501.5,0.001]
[1759713409253,8.1381837,4501.6,4501.5,0.001]
[1759713409447,5.6171837,4501.6,4501.5,0.001]
[1759713409609,8.1381837,4501.6,4501.5,0.001]
[1759713410912,4.05349155,4501.6,4501.5,0.001]
[1759713411117,1.98969155,4501.6,4501.5,0.001]
[1759713411439,5.23819562,4501.6,4501.5,0.001]
[1759713411633,5.71362123,4501.6,4501.5,0.001]
[1759713412849,3.19271115,4501.6,4501.5,0.001]
[1759713413051,0.79271115,4501.6,4501.5,0.001]
[1759713413214,2.83828554,4501.6,4501.5,0.001]
[1759713413416,2.83828554,4501.6,4501.5,2.22248172]
[1759713413965,3.31371115,4501.6,4501.5,2.22248172]
[1759713414447,2.83828554,4501.6,4501.5,2.22248172]
[1759713414748,0.31728554,4501.6,4501.5,2.22248172]
[1759713414927,2.83828554,4501.6,4501.5,3.14270689]
[1759713415127,2.6322,4501.6,4501.5,3.14270689]
[1759713415340,2.6322,4501.6,4501.5,2.69608172]
[1759713416343,0.1112,4501.6,4501.5,2.69608172]
[1759713416658,0.1132,4502.1,4502.0,2.221235]
[1759713416949,2.6342,4502.1,4502.0,2.221235]
[1759713417154,2.6342,4502.1,4502.0,2.694835]
[1759713417519,0.1132,4502.1,4502.0,2.694835]
[1759713417854,2.523,4502.1,4502.0,3.18867067]
[1759713418413,0.002,4502.1,4502.0,3.18867067]
[1759713418915,0.002,4502.1,4502.0,3.29987067]
[1759713419250,0.002,4502.1,4502.0,3.32208302]
[1759713419560,0.002,4502.1,4502.0,3.29987067]
[1759713421348,0.002,4502.1,4502.0,3.32208302]
[1759713421524,1e-08,4502.9,4502.8,2.22084036]
[1759713421726,1e-08,4502.9,4502.8,2.66501609]
[1759713421920,1e-08,4502.9,4502.8,3.13861609]
[1759713423985,1e-08,4502.9,4502.8,2.66501609]
[1759713424279,0.44840001,4502.9,4502.0,0.49383567]
[1759713424450,0.44840001,4502.9,4502.8,2.22084036]
[1759713424648,0.44840001,4502.9,4502.0,0.49383567]
[1759713424981,0.44840001,4502.9,4502.0,2.221235]
[1759713425148,0.44840001,4502.9,4501.9,0.4516]
[1759713425348,0.44840001,4502.9,4502.8,2.22084036]
[1759713425659,0.44840001,4502.9,4502.1,0.02221185]
[1759713425891,0.44840001,4502.9,4502.0,2.221235]
[1759713426058,0.45040001,4502.9,4502.1,0.02221185]
[1759713426259,0.00200001,4502.9,4502.8,2.22084036]
[1759713426490,1.62000001,4502.9,4502.8,2.67244036]
[1759713427450,1.62000001,4502.9,4502.1,10.07037368]
[1759713427451,1.62000001,4502.9,4502.1,0.26950469]
[1759713427785,2.06840001,4502.9,4501.5,0.001]
[1759713427983,2.06840001,4502.9,4502.3,2.22108373]
[1759713428186,2.06840001,4502.9,4501.5,0.001]
[1759713428187,0.4484,4502.8,4501.5,0.001]
[1759713428764,0.4484,4502.8,4502.4,2.22102378]
[1759713428966,0.4484,4502.7,4502.2,2.22108974]
[1759713429287,0.4484,4502.7,4502.3,2.22106907]
[1759713429496,0.4484,4502.6,4502.4,2.22102621]
[1759713429737,1.62000001,4502.9,4501.6,0.26740476]
[1759713429738,0.4484,4502.5,4501.6,0.26740476]
[1759713430012,0.4484,4502.5,4501.9,2.22126476]
[1759713430212,0.4484,4502.5,4501.5,0.001]
[1759713430213,0.4484,4502.5,4501.6,2.22143237]
[1759713430417,0.4484,4502.5,4502.3,2.22107193]
[1759713430579,0.4484,4502.4,4502.3,2.22107193]
[1759713430980,0.4484,4502.8,4502.5,2.22098503]
[1759713431180,1.62000001,4502.9,4501.8,0.4516]
[1759713431181,2.06840001,4502.9,4501.8,0.4516]
[1759713431420,2.06840001,4502.9,4502.5,2.22098118]
[1759713431597,0.65544,4502.8,4502.6,2.22093604]
[1759713432119,0.5596,4502.7,4502.6,2.22093604]
[1759713432682,0.5596,4502.7,4502.4,2.22099102]
[1759713432891,0.20704,4502.8,4502.4,2.22099102]
[1759713433197,0.1112,4502.5,4502.4,2.22099102]
[1759713438865,0.1112,4502.5,4502.4,2.67259102]
[1759713439028,0.4484,4502.5,4501.4,2.22152437]
[1759713439211,0.4484,4502.5,4501.9,2.22127371]
[1759713439416,0.4484,4502.4,4501.2,2.22162404]
[1759713439719,2.4,4502.6,4502.2,2.22110224]
[1759713439919,2.4,4502.6,4501.6,0.4516]
[1759713439920,0.4484,4502.5,4501.8,2.22133368]
[1759713440120,2.521,4502.4,4501.9,0.71889337]
[1759713440350,2.521,4502.4,4502.3,2.22108699]
[1759713447077,2.521,4502.4,4502.1,2.22115976]
[1759713447457,2.521,4502.4,4502.1,2.22118566]
[1759713447657,2.521,4502.4,4502.3,2.22108699]
[1759713449089,2.6322,4502.4,4502.3,2.22108699]
[1759713449554,2.6322,4502.4,4502.3,2.67268699]
[1759713449886,2.6322,4502.4,4502.3,2.22108699]
[1759713450795,3.0806,4502.4,4502.0,0.001]
[1759713451090,0.1112,4502.2,4502.0,0.001]
[1759713451293,3.23986082,4502.1,4502.0,0.001]
[1759713451480,4.16337218,4502.1,4502.0,0.001]
[1759713452591,5.60223139,4502.1,4502.0,0.001]
[1759713452915,7.30589653,4502.1,4502.0,0.001]
[1759713453597,6.67229653,4502.1,4502.0,0.001]
[1759713454101,4.15129653,4502.1,4502.0,0.001]
[1759713454324,6.67229653,4502.1,4502.0,0.001]
[1759713456615,3.08123139,4502.1,4502.0,0.001]
[1759713456817,0.68123139,4502.1,4502.0,2.693835]
[1759713457015,2.521,4502.1,4502.0,2.693835]
[1759713460802,0.1112,4502.2,4502.1,2.22118566]
[1759713461037,2.6322,4502.2,4502.1,2.69278566]
[1759713461345,2.8382159,4502.2,4502.1,3.72933681]
[1759713461546,2.6322,4502.2,4502.1,3.72933681]